fUSD/lending_fUSD_20260405
["ID","MTS","AMOUNT","RATE_DAILY","PERIOD"]
[419858035,1775424643680,-743.50770149,0.00015057,2]
[419858036,1775424643690,-668.65185757,0.00015057,2]
[419858037,1775424643700,-170.0,0.00015057,2]
[419858038,1775424643710,-170.0,0.00015057,2]
[419858039,1775424643720,-170.0,0.00015057,2]
[419858040,1775424643730,-1166.05065886,0.00015057,2]
[419858041,1775424643739,-170.0,0.00015057,2]
[419858042,1775424643750,-279.9045709,0.00015057,2]
[419858043,1775424643759,-170.0,0.00015057,2]
[419858044,1775424643769,-170.0,0.00015057,2]
[419858045,1775424643779,-170.0,0.00015057,2]
[419858046,1775424643789,-170.0,0.00015057,2]
[419858047,1775424643798,-170.0,0.00015057,2]
[419858048,1775424643808,-170.0,0.00015057,2]
[419858049,1775424643818,-170.0,0.00015057,2]
[419858050,1775424643829,-170.0,0.00015057,2]
[419858051,1775424643838,-150.0,0.00015067,2]
[419858052,1775424643848,-900.0,0.00015068,2]
[419858053,1775424643857,-800.96674089,0.00015068,2]
[419858054,1775424643867,-558.37452133,0.0001507,2]
[419858055,1775424643878,-150.0,0.00015074,2]
[419858056,1775424643887,-150.0,0.00015074,2]
[419858057,1775424643897,-500.0,0.0001508,2]
[419858058,1775424643908,-500.0,0.0001508,2]
[419858059,1775424643918,-150.0,0.00015086,2]
[419858060,1775424643929,-150.0,0.00015086,2]
[419858061,1775424643939,-500.0,0.00015112,2]
[419858062,1775424643948,-151.0,0.00015112,2]
[419858063,1775424643958,-350.0,0.00015132,2]
[419858064,1775424643968,-150.0,0.00015133,2]
[419858065,1775424643977,-433.0,0.0001515,2]
[419858066,1775424643987,-150.0,0.00015158,2]
[419858067,1775424643997,-150.0,0.00015158,2]
[419858068,1775424644006,-500.0,0.00015167,2]
[419858069,1775424644016,-151.0,0.00015167,2]
[419858070,1775424644026,-150.0,0.000152,2]
[419858071,1775424644035,-150.0,0.000152,2]
[419858072,1775424644045,-150.0,0.000152,2]
[419858073,1775424644055,-150.0,0.000152,2]
[419858074,1775424644065,-150.0,0.000152,2]
[419858075,1775424644074,-150.0,0.000152,2]
[419858076,1775424644084,-507.0,0.00015201,3]
[419858077,1775424644094,-1600.0,0.0001521,2]
[419858078,1775424644103,-500.0,0.00015222,2]
[419858079,1775424644112,-151.0,0.00015222,2]
[419858080,1775424644121,-5700.97432181,0.00015222,2]
[419858081,1775424644130,-150.0,0.00015242,2]
[419858082,1775424644140,-150.0,0.00015242,2]
[419858083,1775424644150,-5888.0,0.00015247,2]
[419858084,1775424644160,-150.0,0.00015267,2]
[419858085,1775424644169,-500.0,0.00015277,2]
[419858086,1775424644178,-151.0,0.00015277,2]
[419858087,1775424644188,-500.0,0.00015283,2]
[419858088,1775424644197,-500.0,0.00015283,2]
[419858089,1775424644208,-500.0,0.00015283,2]
[419858090,1775424644219,-500.0,0.00015283,2]
[419858091,1775424644229,-456.0,0.00015297,5]
[419858092,1775424644238,-150.0,0.00015314,2]
[419858093,1775424644248,-150.0,0.00015314,2]
[419858094,1775424644258,-150.0,0.00015326,2]
[419858095,1775424644268,-150.0,0.00015326,2]
[419858096,1775424644278,-500.0,0.00015332,2]
[419858097,1775424644287,-151.0,0.00015332,2]
[419858098,1775424644297,-150.0,0.00015333,2]
[419858099,1775424644307,-500.0,0.00015387,2]
[419858100,1775424644318,-151.0,0.00015387,2]
[419858101,1775424644328,-189.9893,0.000154,2]
[419858102,1775424644339,-150.0,0.000154,2]
[419858103,1775424644349,-150.0,0.000154,2]
[419858104,1775424644359,-150.0,0.00015411,2]
[419858105,1775424644368,-150.0,0.00015411,2]
[419858106,1775424644378,-150.0,0.00015429,2]
[419858107,1775424644387,-150.0,0.00015429,2]
[419858108,1775424644396,-500.0,0.00015442,2]
[419858109,1775424644407,-151.0,0.00015442,2]
[419858110,1775424644417,-6020.0,0.00015447,2]
[419858111,1775424644427,-1347.0,0.00015447,2]
[419858112,1775424644436,-1000.0,0.00015448,2]
[419858113,1775424644447,-587.0,0.00015459,2]
[419858114,1775424644457,-150.0,0.00015467,2]
[419858115,1775424644466,-150.0,0.00015467,2]
[419858116,1775424644476,-5333.89,0.00015471,2]
[419858117,1775424644486,-1684.46,0.00015471,2]
[419858118,1775424644495,-1075.125213,0.00015494,7]
[419858119,1775424644504,-999.514686,0.00015494,2]
[419858120,1775424644514,-150.0,0.00015495,2]
[419858121,1775424644523,-150.0,0.00015495,2]
[419858122,1775424644532,-500.0,0.00015497,2]
[419858123,1775424644542,-151.0,0.00015497,2]
[419858124,1775424644551,-1000.0,0.00015502,2]
[419858125,1775424644560,-1002.58762782,0.00015502,2]
[419858126,1775424644570,-1000.0,0.00015502,2]
[419858127,1775424644579,-1000.0,0.00015502,2]
[419858128,1775424644588,-1000.0,0.00015502,2]
[419858129,1775424644597,-1000.0,0.00015502,2]
[419858130,1775424644607,-1000.0,0.00015502,2]
[419858131,1775424644616,-4000.0,0.00015507,2]
[419858132,1775424644626,-150.0,0.00015533,2]
[419858133,1775424644636,-150.0,0.00015543,2]
[419858134,1775424644644,-150.0,0.00015543,2]
[419858135,1775424644654,-2351.0,0.00015548,2]
[419858136,1775424644663,-500.0,0.00015552,2]
[419858137,1775424644672,-151.0,0.00015552,2]
[419858138,1775424644682,-4067.0,0.00015553,2]
[419858139,1775424644692,-5700.97432181,0.00015561,2]
[419858140,1775424644701,-818.06583411,0.00015568,2]
[419858141,1775424644710,-1000.0,0.00015568,2]
[419858142,1775424644719,-1000.0,0.00015573,2]
[419858143,1775424644728,-1000.0,0.00015573,2]
[419858144,1775424644739,-2826.1122807,0.00015577,2]
[419858145,1775424644748,-150.0,0.00015579,2]
[419858146,1775424644758,-150.0,0.00015579,2]
[419858147,1775424644768,-162.3905,0.000156,2]
[419858148,1775424644777,-150.0,0.000156,2]
[419858149,1775424644787,-150.0,0.000156,2]
[419858150,1775424644796,-150.0,0.000156,2]
[419858151,1775424644805,-4417.0,0.000156,5]
[419858152,1775424644815,-200.0,0.00015605,2]
[419858153,1775424644824,-209.40437684,0.00015605,2]
[419858154,1775424644833,-1428.38747117,0.00015605,2]
[419858155,1775424644843,-181.08010149,0.00015605,2]
[419858156,1775424644852,-771.01748645,0.00015605,2]
[419858157,1775424644861,-693.3919763,0.00015605,2]
[419858158,1775424644871,-305.84152636,0.00015605,2]
[419858159,1775424644880,-500.0,0.00015607,2]
[419858160,1775424644890,-151.0,0.00015607,2]
[419858161,1775424644900,-155.19654635,0.00015625,2]
[419858162,1775424644909,-1000.0,0.00015628,2]
[419858163,1775424644919,-253.85680119,0.00015628,2]
[419858164,1775424644928,-5547.0,0.00015648,2]
[419858165,1775424644937,-150.0,0.00015657,2]
[419858166,1775424644946,-150.0,0.00015657,2]
[419858167,1775424644955,-500.0,0.00015662,2]
[419858168,1775424644964,-151.0,0.00015662,2]
[419858169,1775424644974,-150.0,0.00015663,2]
[419858170,1775424644983,-150.0,0.00015663,2]
[419858171,1775424644992,-150.0,0.00015667,2]
[419858172,1775424645001,-1478.75367566,0.0001568,2]
[419858173,1775424645012,-1115.80583816,0.0001568,2]
[419858174,1775424645023,-1043.73328087,0.0001568,2]
[419858175,1775424645032,-1001.45276745,0.0001568,2]
[419858176,1775424645043,-1125.28633137,0.0001568,2]
[419858177,1775424645052,-1012.97693466,0.0001568,2]
[419858178,1775424645062,-1106.41953973,0.0001568,2]
[419858179,1775424645073,-1600.54746566,0.0001568,2]
[419858180,1775424645081,-4960.25,0.00015684,2]
[419858181,1775424645091,-1292.226538,0.00015689,7]
[419858182,1775424645099,-1162.617358,0.00015689,2]
[419858183,1775424645109,-162.3905,0.000157,2]
[419858184,1775424645119,-14971.1095485,0.00015703,2]
[419858185,1775424645128,-500.0,0.00015726,2]
[419858186,1775424645137,-500.0,0.00015726,2]
[419858187,1775424645148,-500.0,0.00015726,2]
[419858188,1775424645157,-500.0,0.00015726,2]
[419858189,1775424645166,-500.0,0.00015726,2]
[419858190,1775424645175,-500.0,0.00015726,2]
[419858191,1775424645184,-500.0,0.00015726,2]
[419858192,1775424645193,-500.0,0.00015726,2]
[419858193,1775424645202,-500.0,0.00015726,2]
[419858194,1775424645211,-500.0,0.00015726,2]
[419858195,1775424645220,-500.0,0.00015726,2]
[419858196,1775424645230,-500.0,0.00015726,2]
[419858197,1775424645239,-615.77009816,0.00015726,2]
[419858198,1775424645248,-500.0,0.00015726,2]
[419858199,1775424645257,-825.0,0.00015726,2]
[419858200,1775424645266,-825.0,0.00015726,2]
[419858201,1775424645275,-825.0,0.00015726,2]
[419858202,1775424645284,-825.0,0.00015726,2]
[419858203,1775424645293,-825.0,0.00015726,2]
[419858204,1775424645302,-825.0,0.00015726,2]
[419858205,1775424645311,-825.0,0.00015726,2]
[419858206,1775424645320,-825.0,0.00015726,2]
[419858207,1775424645330,-825.0,0.00015726,2]
[419858208,1775424645339,-825.0,0.00015726,2]
[419858209,1775424645349,-825.0,0.00015726,2]
[419858210,1775424645358,-825.0,0.00015726,2]
[419858211,1775424645368,-825.0,0.00015726,2]
[419858212,1775424645377,-825.0,0.00015726,2]
[419858213,1775424645387,-825.0,0.00015726,2]
[419858214,1775424645395,-825.0,0.00015726,2]
[419858215,1775424645404,-825.0,0.00015726,2]
[419858216,1775424645413,-825.0,0.00015726,2]
[419858217,1775424645422,-825.0,0.00015726,2]
[419858218,1775424645431,-825.0,0.00015726,2]
[419858219,1775424645441,-825.0,0.00015726,2]
[419858220,1775424645450,-825.0,0.00015726,2]
[419858221,1775424645459,-825.0,0.00015726,2]
[419858222,1775424645468,-834.0,0.00015726,2]
[419858223,1775424645478,-2962.0,0.00015726,2]
[419858224,1775424645487,-2962.0,0.00015726,2]
[419858225,1775424645496,-2962.0,0.00015726,2]
[419858226,1775424645505,-2962.0,0.00015726,2]
[419858227,1775424645514,-2962.0,0.00015726,2]
[419858228,1775424645523,-2962.0,0.00015726,2]
[419858229,1775424645534,-2962.0,0.00015726,2]
[419858230,1775424645543,-2962.0,0.00015726,2]
[419858231,1775424645553,-2962.0,0.00015726,2]
[419858232,1775424645562,-2962.0,0.00015726,2]
[419858234,1775424645571,-2962.0,0.00015726,2]
[419858235,1775424645580,-2962.0,0.00015726,2]
[419858236,1775424645590,-2962.0,0.00015726,2]
[419858237,1775424645599,-2962.0,0.00015726,2]
[419858238,1775424645608,-2962.0,0.00015726,2]
[419858239,1775424645617,-2962.0,0.00015726,2]
[419858240,1775424645626,-2962.0,0.00015726,2]
[419858241,1775424645635,-2962.0,0.00015726,2]
[419858242,1775424645644,-2962.0,0.00015726,2]
[419858243,1775424645655,-2962.0,0.00015726,2]
[419858244,1775424645664,-2962.0,0.00015726,2]
[419858245,1775424645674,-2962.0,0.00015726,2]
[419858246,1775424645684,-2962.0,0.00015726,2]
[419858247,1775424645693,-2971.36335866,0.00015726,2]
[419858248,1775424645704,-150.0,0.00015733,2]
[419858249,1775424645713,-150.0,0.00015733,2]
[419858250,1775424645723,-814.40712568,0.0001574,2]
[419858251,1775424645734,-2000.0,0.0001574,2]
[419858252,1775424645743,-2000.0,0.0001574,2]
[419858253,1775424645753,-150.0,0.00015747,2]
[419858254,1775424645763,-150.0,0.00015747,2]
[419858255,1775424645773,-2000.0,0.0001575,2]
[419858256,1775424645782,-2000.0,0.0001575,2]
[419858257,1775424645792,-814.40712562,0.00015767,2]
[419858258,1775424645802,-414.0,0.00015769,2]
[419858259,1775424645811,-150.0,0.00015771,2]
[419858260,1775424645820,-150.0,0.00015771,2]
[419858261,1775424645829,-500.0,0.00015773,2]
[419858262,1775424645839,-500.0,0.00015773,2]
[419858263,1775424645849,-500.0,0.00015773,2]
[419858264,1775424645859,-500.0,0.00015773,2]
[419858265,1775424645869,-200.0,0.00015773,2]
[419858266,1775424645879,-814.40712562,0.00015793,2]
[419858267,1775424645888,-500.0,0.00015798,2]
[419858268,1775424645898,-10000.0,0.00015799,2]
[419858269,1775424645908,-162.3905,0.000158,2]
[419858270,1775424645918,-162.3905,0.000158,2]
[419858271,1775424645928,-162.3905,0.000158,2]
[419858272,1775424645938,-162.3905,0.000158,2]
[419858273,1775424645947,-162.3905,0.000158,2]
[419858274,1775424645958,-162.3905,0.000158,2]
[419858275,1775424645967,-162.3905,0.000158,2]
[419858276,1775424645976,-162.3905,0.000158,2]
[419858277,1775424645987,-162.3905,0.000158,2]
[419858278,1775424645996,-162.3905,0.000158,2]
[419858279,1775424646006,-162.3905,0.000158,2]
[419858280,1775424646015,-162.3905,0.000158,2]
[419858281,1775424646024,-162.3905,0.000158,2]
[419858282,1775424646033,-162.3905,0.000158,2]
[419858283,1775424646043,-162.3905,0.000158,2]
[419858284,1775424646052,-162.3905,0.000158,2]
[419858285,1775424646060,-162.3905,0.000158,2]
[419858286,1775424646070,-162.3905,0.000158,2]
[419858287,1775424646080,-162.3905,0.000158,2]
[419858288,1775424646089,-162.3905,0.000158,2]
[419858289,1775424646098,-162.3905,0.000158,2]
[419858290,1775424646107,-162.3905,0.000158,2]
[419858291,1775424646116,-162.3905,0.000158,2]
[419858292,1775424646125,-162.3908,0.000158,2]
[419858293,1775424646134,-150.0,0.000158,2]
[419858294,1775424646144,-150.0,0.000158,2]
[419858295,1775424646153,-1816.34421589,0.00015801,2]
[419858296,1775424646162,-443.91743602,0.00015811,2]
[419858297,1775424646171,-3696.0,0.00015813,5]
[419858298,1775424646181,-2960.0,0.00015813,5]
[419858299,1775424646190,-378.28,0.00015814,2]
[419858300,1775424646200,-262.0,0.00015817,2]
[419858301,1775424646210,-814.40712562,0.0001582,2]
[419858302,1775424646220,-500.0,0.00015822,2]
[419858303,1775424646231,-200.0,0.00015822,2]
[419858304,1775424646242,-305.0,0.00015823,5]
[419858305,1775424646254,-942.0374268,0.0001583,2]
[419858306,1775424646264,-109385.9582909,0.0001583,2]
[419858307,1775424646275,-105377.0128395,0.0001583,2]
[419858308,1775424646284,-1000.0,0.00015831,2]
[419858309,1775424646294,-1000.0,0.00015831,2]
[419858310,1775424646304,-1000.0,0.00015831,2]
[419858311,1775424646314,-1000.0,0.00015831,2]
[419858312,1775424646324,-150.0,0.00015832,2]
[419858313,1775424646334,-150.0,0.00015832,2]
[419858314,1775424646344,-250.0,0.00015836,2]
[419858315,1775424646355,-155.09,0.00015836,2]
[419858316,1775424646365,-66332.23211067,0.0001584,2]
[419858331,1775424646524,-1000.0,0.0001584,2]
[419858333,1775424646540,-3114.10485394,0.0001584,2]
[419858388,1775424647133,-5930.77839574,0.0001485,2]
[419858389,1775424647144,-1046.0,0.00015447,2]
[419858390,1775424647156,-4494.36620961,0.0001584,2]
[419858391,1775424647185,-38298.72840282,0.0001584,2]
[419858392,1775424647206,-326.9592042,0.0001584,2]
[419858393,1775424647218,-1751.70942853,0.0001584,2]
[419858394,1775424647230,-570.0,0.0001584,2]
[419858395,1775424647668,-507.0,0.00013111,2]
[419858396,1775424647678,-43019.86037052,0.0001584,2]
[419858397,1775424647708,-5930.77839574,0.000152,2]
[419858398,1775424647719,-7235.08141971,0.0001584,2]
[419858399,1775424647729,-518.811803,0.0001584,2]
[419858400,1775424647741,-518.811803,0.0001584,2]
[419858401,1775424647750,-518.811803,0.0001584,2]
[419858402,1775424647761,-518.811803,0.0001584,2]
[419858403,1775424647772,-151.0,0.0001584,2]
[419858404,1775424647784,-151.0,0.0001584,2]
[419858405,1775424647794,-151.0,0.0001584,2]
[419858406,1775424647803,-814.40712562,0.00015847,2]
[419858407,1775424647813,-500.0,0.00015847,2]
[419858408,1775424647824,-350.0,0.00015848,2]
[419858409,1775424647835,-2224.09,0.00015862,2]
[419858410,1775424647844,-150.0,0.00015867,2]
[419858411,1775424647855,-315.0,0.00015867,2]
[419858412,1775424647865,-4067.0,0.00015868,2]
[419858413,1775424647876,-200.0,0.00015871,2]
[419858414,1775424647886,-200.0,0.00015871,2]
[419858415,1775424647898,-200.0,0.00015871,2]
[419858416,1775424647908,-200.0,0.00015871,2]
[419858417,1775424647917,-200.0,0.00015871,2]
[419858418,1775424647926,-200.0,0.00015871,2]
[419858419,1775424647935,-200.0,0.00015871,2]
[419858420,1775424647945,-220.0,0.00015871,2]
[419858421,1775424647954,-500.0,0.00015871,2]
[419858422,1775424647963,-200.0,0.00015871,2]
[419858423,1775424647973,-500.0,0.00015873,2]
[419858424,1775424647983,-500.0,0.00015873,2]
[419858425,1775424647992,-814.40712562,0.00015873,2]
[419858426,1775424648001,-150.0,0.00015886,2]
[419858427,1775424648010,-150.0,0.00015886,2]
[419858428,1775424648019,-4000.0,0.00015895,2]
[419858429,1775424648029,-180.50323412,0.00015898,2]
[419858430,1775424648038,-3804.09730093,0.00015899,2]
[419858431,1775424648047,-1418.45444446,0.000159,2]
[419858432,1775424648081,-2385.64285645,0.000159,2]
[419858433,1775424648090,-3648.26242564,0.000159,2]
[419858434,1775424648100,-25000.0,0.000159,3]
[419858435,1775424648112,-34979.62147883,0.000159,2]
[419858436,1775424648122,-814.40712562,0.000159,2]
[419858437,1775424648131,-1000.0,0.000159,2]
[419858438,1775424648141,-1075.35,0.000159,2]
[419858439,1775424648151,-150.0,0.000159,2]
[419858440,1775424648162,-150.0,0.000159,2]
[419858441,1775424648171,-1156.39238626,0.000159,2]
[419858442,1775424648182,-396.09938771,0.000159,2]
[419858443,1775424648191,-25000.0,0.000159,3]
[419858444,1775424648200,-150.0,0.000159,2]
[419858445,1775424648210,-150.0,0.000159,2]
[419858446,1775424648219,-150.0,0.000159,2]
[419858447,1775424648229,-150.0,0.000159,2]
[419858448,1775424648238,-150.0,0.000159,2]
[419858449,1775424648249,-539.252182,0.000159,2]
[419858450,1775424648259,-539.252182,0.000159,2]
[419858451,1775424648271,-539.252182,0.000159,2]
[419858452,1775424648280,-539.252182,0.000159,2]
[419858453,1775424648291,-150.0,0.000159,2]
[419858454,1775424648300,-2000.0,0.000159,2]
[419858455,1775424648310,-2000.0,0.000159,2]
[419858456,1775424648319,-2000.0,0.000159,2]
[419858457,1775424648329,-652.815241,0.000159,2]
[419858458,1775424648338,-652.815241,0.000159,2]
[419858459,1775424648347,-652.815241,0.000159,2]
[419858460,1775424648356,-652.815241,0.000159,2]
[419858461,1775424648365,-151.0,0.000159,2]
[419858462,1775424648375,-151.0,0.000159,2]
[419858463,1775424648384,-151.0,0.000159,2]
[419858464,1775424648394,-209.75164,0.000159,2]
[419858465,1775424648403,-5700.97432181,0.000159,2]
[419858466,1775424648413,-177.24080314,0.000159,2]
[419858467,1775424648422,-5800.0,0.000159,2]
[419858468,1775424648432,-180.50323412,0.000159,2]
[419858469,1775424648443,-3804.09730091,0.000159,2]
[419858470,1775424648453,-2000.0,0.00015901,2]
[419858471,1775424648465,-214.16792646,0.00015903,2]
[419858472,1775424648476,-405.0,0.00015904,2]
[419858473,1775424648486,-157.39168565,0.00015904,2]
[419858474,1775424648497,-1270.261854,0.00015904,2]
[419858475,1775424648508,-1270.261854,0.00015904,2]
[419858476,1775424648517,-1270.261854,0.00015904,2]
[419858477,1775424648526,-1270.261854,0.00015904,2]
[419858478,1775424648535,-636.073718,0.00015904,2]
[419858479,1775424648544,-636.073718,0.00015904,2]
[419858480,1775424648553,-636.073718,0.00015904,2]
[419858481,1775424648562,-636.073718,0.00015904,2]
[419858482,1775424648571,-152.0,0.00015909,2]
[419858483,1775424648580,-5547.0,0.00015911,2]
[419858484,1775424648590,-151.0,0.00015911,2]
[419858485,1775424648599,-155.02882,0.00015911,2]
[419858486,1775424648608,-150.0,0.00015916,2]
[419858487,1775424648618,-150.0,0.00015916,2]
[419858488,1775424648627,-414.0,0.00015926,2]
[419858489,1775424648636,-657.5478518,0.00015926,2]
[419858490,1775424648646,-324.3229734,0.00015932,2]
[419858491,1775424648655,-500.0,0.00015932,2]
[419858492,1775424648665,-500.0,0.00015932,2]
[419858493,1775424648674,-243.95495793,0.00015933,2]
[419858494,1775424648683,-405.0,0.00015933,2]
[419858495,1775424648693,-150.0,0.00015933,2]
[419858496,1775424648703,-350.0,0.00015933,2]
[419858497,1775424648712,-300.0,0.00015934,2]
[419858498,1775424648721,-300.0,0.00015934,2]
[419858499,1775424648730,-300.0,0.00015934,2]
[419858500,1775424648740,-300.0,0.00015934,2]
[419858501,1775424648751,-300.0,0.00015934,2]
[419858502,1775424648760,-300.0,0.00015934,2]
[419858503,1775424648770,-300.0,0.00015934,2]
[419858504,1775424648779,-300.0,0.00015934,2]
[419858505,1775424648789,-300.0,0.00015934,2]
[419858506,1775424648800,-267.0,0.00015934,2]
[419858507,1775424648809,-246.28045313,0.00015935,2]
[419858508,1775424648818,-273.0,0.00015937,2]
[419858509,1775424648827,-217.0,0.00015937,2]
[419858510,1775424648837,-200.0,0.00015937,2]
[419858511,1775424648846,-150.0,0.00015937,2]
[419858512,1775424648856,-224.902,0.00015937,2]
[419858513,1775424648865,-250.0,0.00015937,2]
[419858514,1775424648875,-208.102,0.00015937,2]
[419858515,1775424648884,-250.0,0.00015937,2]
[419858516,1775424648894,-250.0,0.00015937,2]
[419858517,1775424648903,-163.183,0.00015937,2]
[419858518,1775424648913,-155.122,0.00015937,2]
[419858519,1775424648922,-193.552,0.00015937,2]
[419858520,1775424648932,-166.114,0.00015937,2]
[419858521,1775424648941,-250.0,0.00015937,2]
[419858522,1775424648950,-214.923,0.00015937,2]
[419858523,1775424648959,-276.717,0.00015937,2]
[419858524,1775424648968,-1267.843,0.00015937,2]
[419858525,1775424648978,-1055.485,0.00015937,2]
[419858526,1775424648988,-1217.0,0.00015937,2]
[419858527,1775424648997,-498.75582098,0.00015945,2]
[419858528,1775424649007,-507.7153201,0.00015945,2]
[419858529,1775424649016,-150.0,0.00015952,2]
[419858530,1775424649026,-519.0,0.00015953,2]
[419858531,1775424649035,-708.60990113,0.00015953,2]
[419858532,1775424649045,-3716.00442167,0.0001596,2]
[419858533,1775424649054,-263.97859585,0.00015969,2]
[419858534,1775424649063,-978.74,0.00015969,2]
[419858535,1775424649073,-1269.86,0.00015969,2]
[419858536,1775424649082,-1143.16,0.00015969,2]
[419858537,1775424649092,-673.65,0.00015969,2]
[419858538,1775424649101,-11870.0,0.00015973,2]
[419858539,1775424649110,-151.0,0.00015973,2]
[419858540,1775424649119,-481.0,0.00015976,2]
[419858541,1775424649128,-350.0,0.00015984,2]
[419858542,1775424649138,-191.43643685,0.0001599,2]
[419858543,1775424649147,-191.43643685,0.0001599,2]
[419858544,1775424649157,-150.0,0.00015992,2]
[419858545,1775424649167,-414.0,0.00015993,2]
[419858546,1775424649176,-1500.0,0.00015996,2]
[419858547,1775424649186,-728.0,0.00015996,2]
[419858548,1775424649196,-164.79861007,0.00015996,2]
[419858549,1775424649205,-150.0,0.00015996,2]
[419858550,1775424649214,-150.0,0.00015996,2]
[419858551,1775424649224,-150.0,0.00015996,2]
[419858552,1775424649234,-500.0,0.00015996,2]
[419858553,1775424649244,-150.0,0.00015996,2]
[419858554,1775424649253,-500.0,0.00015996,2]
[419858555,1775424649262,-150.0,0.00015996,2]
[419858556,1775424649271,-208.12187324,0.00015996,2]
[419858557,1775424649280,-500.0,0.00015996,2]
[419858558,1775424649290,-226.185574,0.00015997,2]
[419858559,1775424649299,-151.0,0.00015997,2]
[419858560,1775424649311,-151.0,0.00015997,2]
[419858561,1775424649320,-158.086667,0.00015997,2]
[419858562,1775424649330,-1269.86,0.00015998,2]
[419858563,1775424649486,-1143.16,0.00015998,2]
[419858564,1775424649496,-673.65,0.00015998,2]
[419858565,1775424649507,-500.0,0.00015998,2]
[419858566,1775424649517,-780.77,0.00015998,2]
[419858567,1775424649527,-634.93,0.00015998,2]
[419858568,1775424649540,-571.58,0.00015998,2]
[419858569,1775424649549,-500.0,0.00015998,2]
[419858570,1775424649559,-500.0,0.00015998,2]
[419858571,1775424649570,-500.0,0.00015998,2]
[419858572,1775424649580,-500.0,0.00015998,2]
[419858573,1775424649590,-615.25,0.00015998,2]
[419858574,1775424649600,-640.37,0.00015998,2]
[419858575,1775424649611,-666.0,0.00015999,2]
[419858576,1775424649621,-666.0,0.00015999,2]
[419858577,1775424649631,-666.0,0.00015999,2]
[419858578,1775424649640,-666.0,0.00015999,2]
[419858579,1775424649649,-666.0,0.00015999,2]
[419858580,1775424649658,-666.0,0.00015999,2]
[419858581,1775424649668,-978.74,0.00015999,2]
[419858582,1775424649679,-978.74,0.00015999,2]
[419858583,1775424649688,-978.74,0.00015999,2]
[419858584,1775424649697,-978.74,0.00015999,2]
[419858585,1775424649706,-978.74,0.00015999,2]
[419858586,1775424649715,-978.74,0.00015999,2]
[419858587,1775424649724,-978.74,0.00015999,2]
[419858588,1775424649733,-978.74,0.00015999,2]
[419858589,1775424649743,-978.74,0.00015999,2]
[419858590,1775424649753,-978.74,0.00015999,2]
[419858591,1775424649763,-978.80099318,0.00015999,2]
[419858592,1775424649772,-1000.0,0.00015999,5]
[419858593,1775424649781,-1000.0,0.00015999,10]
[419858594,1775424649790,-1269.86,0.00015999,2]
[419858595,1775424649799,-1269.86,0.00015999,2]
[419858596,1775424649808,-1269.86,0.00015999,2]
[419858597,1775424649818,-1269.86,0.00015999,2]
[419858598,1775424649827,-1269.86,0.00015999,2]
[419858599,1775424649836,-1269.86,0.00015999,2]
[419858600,1775424649845,-1269.86,0.00015999,2]
[419858601,1775424649854,-1269.86,0.00015999,2]
[419858602,1775424649863,-1270.08214758,0.00015999,2]
[419858603,1775424649872,-1140.37,0.00015999,2]
[419858604,1775424649881,-1140.37,0.00015999,2]